bitfinex/quotes_BTCUSD_20250916
["timestamp","ask_amount","ask_price","bid_price","bid_amount"]
[1758039851940,0.0001,115800.0,115790.0,1.50626637]
[1758039852157,0.0001,115800.0,115790.0,1.09554215]
[1758039852393,0.0001,115800.0,115790.0,1.50626637]
[1758039852597,0.0001,115800.0,115790.0,1.50636637]
[1758039852973,0.0001,115800.0,115790.0,1.09564215]
[1758039853598,0.0001,115800.0,115790.0,1.09964215]
[1758039854491,0.0001,115800.0,115790.0,1.10264215]
[1758039855359,0.0001,115800.0,115790.0,1.09864215]
[1758039855795,0.0001,115800.0,115790.0,1.09764215]
[1758039856233,0.0001,115800.0,115790.0,0.68791793]
[1758039856469,0.0001,115800.0,115790.0,1.09864215]
[1758039862937,0.27338,115800.0,115790.0,0.68791793]
[1758039863080,0.27338,115800.0,115790.0,1.09864215]
[1758039863889,0.27338,115800.0,115790.0,0.68791793]
[1758039864090,0.27338,115800.0,115790.0,1.09864215]
[1758039864524,0.44609157,115800.0,115790.0,0.68791793]
[1758039864729,0.44609157,115800.0,115790.0,0.28791793]
[1758039864933,0.0001,115800.0,115790.0,0.28791793]
[1758039865133,0.27338,115800.0,115790.0,0.69864215]
[1758039865360,0.44609157,115800.0,115790.0,0.69864215]
[1758039865579,0.08306,115800.0,115790.0,0.69864215]
[1758039865783,0.35634,115800.0,115790.0,0.69864215]
[1758039866204,0.37247101,115800.0,115790.0,0.69864215]
[1758039868836,0.37247101,115800.0,115790.0,1.09864215]
[1758039870682,0.37247101,115800.0,115790.0,0.68791793]
[1758039871087,0.37247101,115800.0,115790.0,1.09864215]
[1758039872512,0.37243101,115800.0,115790.0,1.09864215]
[1758039877547,0.37243101,115800.0,115790.0,0.68791793]
[1758039877723,0.37243101,115800.0,115790.0,1.09864215]
[1758039879780,0.78315523,115800.0,115790.0,0.28791793]
[1758039881907,0.37243101,115800.0,115790.0,0.28791793]
[1758039882935,0.01623101,115800.0,115790.0,0.68791793]
[1758039883097,0.28947101,115800.0,115790.0,0.68791793]
[1758039883309,0.28947101,115800.0,115790.0,1.05273489]
[1758039883945,0.28947101,115800.0,115790.0,0.68791793]
[1758039884480,0.01623101,115800.0,115790.0,0.68791793]
[1758039884685,0.28947101,115800.0,115790.0,1.05273489]
[1758039886438,0.28947101,115800.0,115790.0,1.04853489]
[1758039889027,0.01623101,115800.0,115790.0,1.04853489]
[1758039889241,0.01623101,115800.0,115790.0,1.32177489]
[1758039889467,0.0001,115800.0,115790.0,1.69192679]
[1758039890015,0.0001,115800.0,115790.0,1.71786777]
[1758039890631,0.01629643,115810.0,115800.0,0.17271157]
[1758039891024,0.0001,115810.0,115800.0,0.64789998]
[1758039891320,0.0001,115810.0,115800.0,0.64967998]
[1758039891588,0.0001,115820.0,115810.0,0.20284855]
[1758039891820,0.0001,115820.0,115810.0,0.9960688]
[1758039892097,0.0001,115820.0,115810.0,1.2931788]
[1758039892336,0.0001,115830.0,115820.0,0.17268174]
[1758039892593,0.0001,115830.0,115820.0,1.02400015]
[1758039892788,0.0001,115830.0,115820.0,1.04965015]
[1758039893446,0.27334,115840.0,115830.0,0.17266683]
[1758039893703,0.27334,115840.0,115830.0,0.28481828]
[1758039895003,0.27334,115840.0,115830.0,0.28581828]
[1758039895151,0.27334,115840.0,115830.0,0.28591828]
[1758039896105,0.27334,115840.0,115830.0,0.68591828]
[1758039898511,0.27334,115840.0,115830.0,0.66204828]
[1758039898724,0.27334,115840.0,115830.0,0.68480828]
[1758039898928,0.63815696,115840.0,115830.0,0.28480828]
[1758039899358,0.27334,115840.0,115830.0,0.68480828]
[1758039899826,0.0001,115840.0,115830.0,0.68591828]
[1758039900028,0.2733,115840.0,115830.0,0.68591828]
[1758039900234,0.0001,115840.0,115830.0,0.68591828]
[1758039900463,0.2733,115840.0,115830.0,0.69473652]
[1758039900878,0.0001,115840.0,115830.0,1.05955348]
[1758039901108,0.2733,115840.0,115830.0,1.05955348]
[1758039903208,0.2733,115840.0,115830.0,0.69473652]
[1758039904210,0.2733,115840.0,115830.0,1.05955348]
[1758039904466,0.2733,115840.0,115830.0,0.69473652]
[1758039906484,0.27326,115840.0,115830.0,0.69473652]
[1758039906699,0.27326,115840.0,115830.0,1.05955348]
[1758039908011,0.0001,115840.0,115830.0,1.05955348]
[1758039908217,0.27326,115840.0,115830.0,1.05955348]
[1758039908923,0.0001,115840.0,115830.0,1.05955348]
[1758039909133,0.27326,115840.0,115830.0,1.05955348]
[1758039910195,0.27326,115860.0,115850.0,0.17263703]
[1758039910397,0.27326,115860.0,115850.0,0.28478848]
[1758039910980,0.27326,115860.0,115850.0,0.68478848]
[1758039911456,0.27326,115860.0,115850.0,0.68491032]
[1758039911657,0.27326,115860.0,115850.0,0.68591032]
[1758039912012,0.27326,115860.0,115850.0,0.68491032]
[1758039912216,0.0001,115860.0,115850.0,1.05072728]
[1758039912468,0.27322,115860.0,115850.0,1.05072728]
[1758039913207,0.27322,115860.0,115850.0,1.05182728]
[1758039913647,0.27322,115860.0,115850.0,1.10690783]
[1758039913648,0.0001,115860.0,115850.0,1.10690783]
[1758039914068,0.0001,115860.0,115850.0,1.10590783]
[1758039914706,0.1001,115880.0,115860.0,0.20277403]
[1758039914999,0.1001,115880.0,115870.0,0.28475868]
[1758039915000,0.3737,115880.0,115870.0,0.28475868]
[1758039915221,0.38980215,115880.0,115870.0,0.28475868]
[1758039915437,0.38980215,115880.0,115870.0,0.68475868]
[1758039916881,0.38980215,115880.0,115870.0,0.68875868]
[1758039917085,0.38980215,115880.0,115870.0,1.05367564]
[1758039917308,0.38970215,115880.0,115870.0,1.05367564]
[1758039917726,0.38970215,115880.0,115870.0,0.71478316]
[1758039920972,0.38970215,115880.0,115870.0,0.31478316]
[1758039921178,0.38970215,115880.0,115870.0,0.28885868]
[1758039921395,0.38970215,115880.0,115870.0,0.68885868]
[1758039923602,0.11610215,115880.0,115870.0,0.68885868]
[1758039924063,0.11610215,115880.0,115870.0,0.96229868]
[1758039924496,0.11610431,115880.0,115870.0,0.96229868]
[1758039925094,0.11610431,115880.0,115870.0,0.68885868]
[1758039925362,0.11610431,115880.0,115870.0,0.96225868]
[1758039925930,0.11610431,115880.0,115870.0,1.32707564]
[1758039927653,0.11610431,115880.0,115870.0,1.32699564]
[1758039930019,0.11610431,115880.0,115870.0,1.32691564]
[1758039930227,0.11610431,115880.0,115870.0,0.96209868]
[1758039930640,0.11610431,115880.0,115870.0,0.68885868]
[1758039930851,0.11610431,115880.0,115870.0,0.96205868]
[1758039932111,0.11610431,115880.0,115870.0,1.46205868]
[1758039932658,0.11610431,115880.0,115870.0,1.18885868]
[1758039932876,0.50923127,115880.0,115870.0,1.16320868]
[1758039933090,0.50923127,115880.0,115870.0,0.76320868]
[1758039933406,0.48309127,115880.0,115870.0,0.76498868]
[1758039933758,0.11827431,115880.0,115870.0,0.76498868]
[1758039933972,0.48309127,115880.0,115870.0,0.76498868]
[1758039934159,0.48309127,115880.0,115870.0,0.78774868]
[1758039934368,0.48102127,115880.0,115870.0,0.78774868]
[1758039935129,0.48102127,115880.0,115870.0,0.28774868]
[1758039935582,0.11620431,115880.0,115870.0,0.28774868]
[1758039935813,0.48301127,115880.0,115870.0,0.28774868]
[1758039936449,0.48301127,115880.0,115870.0,0.28697977]
[1758039936629,0.48304071,115880.0,115870.0,0.28697977]
[1758039937033,0.48304071,115880.0,115870.0,0.68697977]
[1758039938063,0.11623375,115880.0,115870.0,0.68697977]
[1758039938274,0.38927375,115880.0,115870.0,1.05290673]
[1758039938460,0.38927375,115880.0,115870.0,0.68697977]
[1758039938659,0.38927375,115880.0,115870.0,0.68808977]
[1758039938908,0.38927375,115880.0,115870.0,0.68697977]
[1758039939063,0.38928553,115880.0,115870.0,0.68697977]
[1758039939475,0.39264553,115880.0,115870.0,0.68697977]
[1758039939821,0.39264553,115880.0,115870.0,0.66421977]
[1758039940024,0.39264553,115880.0,115870.0,0.68697977]
[1758039941771,0.39264553,115880.0,115870.0,0.28697977]
[1758039942206,0.39264553,115880.0,115870.0,0.68697977]
[1758039942419,0.11624553,115880.0,115870.0,0.68697977]
[1758039942849,0.39280553,115880.0,115870.0,0.68808977]
[1758039944603,0.39280553,115880.0,115870.0,0.68697977]
[1758039945020,0.11624553,115880.0,115870.0,0.68697977]
[1758039945227,0.80271077,115880.0,115870.0,0.28697977]
[1758039945648,0.80271077,115880.0,115870.0,0.68697977]
[1758039946218,0.39288553,115880.0,115870.0,0.68697977]
[1758039946429,0.80271077,115880.0,115870.0,0.68697977]
[1758039947847,0.39268553,115880.0,115870.0,0.68808977]
[1758039948180,0.11624553,115880.0,115870.0,1.09791501]
[1758039948382,0.39260553,115880.0,115870.0,1.09791501]
[1758039951064,0.39260553,115880.0,115870.0,0.68808977]
[1758039951499,0.39260553,115880.0,115870.0,0.68697977]
[1758039952145,0.80741077,115880.0,115870.0,0.26421977]
[1758039952365,0.83037077,115880.0,115870.0,0.26243977]
[1758039952581,0.83040418,115880.0,115870.0,0.26243977]
[1758039952792,0.39462894,115880.0,115870.0,0.26421977]
[1758039952994,0.80246418,115880.0,115870.0,0.28697977]
[1758039953439,0.39247894,115880.0,115870.0,0.28697977]
[1758039953639,0.39247894,115880.0,115870.0,0.28808977]
[1758039954481,0.39247988,115880.0,115870.0,0.28808977]
[1758039955080,0.39247988,115880.0,115870.0,0.28697977]
[1758039955778,0.80230512,115880.0,115870.0,0.28697977]
[1758039956264,0.80230512,115880.0,115870.0,0.68697977]
[1758039956680,0.80230658,115880.0,115870.0,0.68697977]
[1758039957339,0.78612524,115880.0,115870.0,0.68697977]
[1758039957546,0.50992524,115880.0,115870.0,0.68697977]
[1758039957753,0.78588524,115880.0,115870.0,0.68697977]
[1758039958207,0.79111524,115880.0,115870.0,0.68697977]
[1758039958646,0.78588524,115880.0,115870.0,0.68697977]
[1758039959286,0.78588524,115880.0,115870.0,0.28697977]
[1758039959717,0.78789524,115880.0,115870.0,0.66421977]
[1758039960360,0.50992524,115880.0,115870.0,0.66421977]
[1758039960579,0.50992524,115880.0,115870.0,0.68697977]
[1758039960760,0.78576524,115880.0,115870.0,0.68697977]
[1758039961061,0.1001,115880.0,115870.0,0.68697977]
[1758039961273,0.78572524,115880.0,115870.0,0.68808977]
[1758039961951,0.78572524,115880.0,115870.0,0.68697977]
[1758039962399,0.78773524,115880.0,115870.0,0.66421977]
[1758039962801,0.78773524,115880.0,115870.0,0.26421977]
[1758039963225,0.78773524,115880.0,115870.0,0.66421977]
[1758039964313,0.79067524,115880.0,115870.0,0.66243977]
[1758039964530,0.79067524,115880.0,115870.0,0.66421977]
[1758039965000,0.79067524,115880.0,115870.0,0.66320868]
[1758039965208,0.81222524,115880.0,115870.0,0.66498868]
[1758039965422,0.98775757,115880.0,115870.0,0.66498868]
[1758039965827,0.81516524,115880.0,115870.0,0.66498868]
[1758039966293,0.81516524,115880.0,115870.0,0.26498868]
[1758039966748,0.53936524,115880.0,115870.0,0.66498868]
[1758039966937,0.81508524,115880.0,115870.0,0.66498868]
[1758039967786,0.96024757,115880.0,115870.0,0.66498868]
[1758039968379,0.96318757,115880.0,115870.0,0.66498868]
[1758039969126,0.78757524,115880.0,115870.0,0.66498868]
[1758039969735,0.78757524,115880.0,115870.0,0.26498868]
[1758039969947,0.76195757,115880.0,115870.0,0.26320868]
[1758039970136,1.03751757,115880.0,115870.0,0.26320868]
[1758039971061,0.76195757,115880.0,115870.0,0.26320868]
[1758039971306,1.03751757,115880.0,115870.0,0.26320868]
[1758039972041,0.58936524,115880.0,115870.0,0.26320868]
[1758039972275,1.03739757,115880.0,115870.0,0.26320868]
[1758039972712,1.03739757,115880.0,115870.0,0.66320868]
[1758039973026,0.1501,115880.0,115870.0,0.66609868]
[1758039973252,0.1001,115880.0,115870.0,0.96741868]
[1758039973497,0.1001,115880.0,115870.0,1.37724392]
[1758039973709,0.1001,115880.0,115870.0,1.40739582]
[1758039973919,0.1001,115880.0,115870.0,1.74739582]
[1758039974623,0.1,115880.0,115870.0,1.74739582]
[1758039975539,0.1,115880.0,115870.0,1.33757058]
[1758039975758,0.1,115880.0,115870.0,1.74739582]
[1758039977528,0.1,115880.0,115870.0,1.81369791]
[1758039979965,1e-08,115880.0,115870.0,1.81369791]
[1758039980459,1e-08,115880.0,115870.0,1.94657791]
[1758039980892,1e-08,115880.0,115870.0,2.35640315]
[1758039981106,1e-08,115880.0,115870.0,2.35440315]
[1758039981332,1e-08,115880.0,115870.0,2.35240315]
[1758039981739,1e-08,115880.0,115870.0,1.53275267]
[1758039982174,0.0067,115920.0,115910.0,0.17254766]
[1758039982393,0.0005,115920.0,115910.0,0.25904911]
[1758039982618,0.0005,115920.0,115910.0,0.28469911]
[1758039982951,0.0005,115920.0,115910.0,1.18469911]
[1758039983380,0.00097066,115920.0,115910.0,1.19336555]
[1758039983669,0.00097066,115920.0,115910.0,1.60319079]
[1758039983853,0.00097066,115920.0,115910.0,1.19336555]
[1758039984560,0.00097066,115920.0,115910.0,1.19536555]
[1758039984982,0.00097066,115920.0,115910.0,1.60319079]
[1758039985398,0.00097066,115920.0,115910.0,1.60619079]
[1758039986220,0.00097066,115920.0,115910.0,1.88475079]
[1758039986460,0.00097066,115920.0,115910.0,1.88463079]
[1758039987114,0.00097066,115920.0,115910.0,1.94968585]
[1758039988526,0.00097066,115920.0,115910.0,1.97983775]
[1758039991202,0.00097066,115920.0,115910.0,1.29157251]
[1758039991874,0.00097066,115920.0,115910.0,1.56961251]
[1758039993357,0.00097066,115920.0,115910.0,1.29157251]
[1758039993539,0.00097066,115920.0,115910.0,1.56961251]
[1758039993773,0.4107959,115920.0,115910.0,1.56961251]
[1758039995567,0.4107959,115920.0,115910.0,1.56937251]
[1758039996168,0.00097066,115920.0,115910.0,1.56937251]
[1758039997800,0.00087066,115920.0,115910.0,1.97919775]
[1758039998757,0.00087066,115920.0,115910.0,1.70039775]
[1758039999228,0.00087066,115920.0,115910.0,1.97791775]
[1758039999612,0.00087066,115920.0,115910.0,1.97591775]
[1758040000385,0.4106959,115920.0,115910.0,1.56597251]
[1758040000590,0.00087066,115920.0,115910.0,1.56597251]
[1758040000800,0.00087066,115920.0,115910.0,1.97579775]
[1758040001124,0.00087066,115920.0,115910.0,1.56597251]
[1758040001867,0.00087066,115920.0,115910.0,1.56591999]
[1758040002028,0.00087066,115920.0,115910.0,1.56891999]
[1758040003202,0.00087066,115920.0,115910.0,1.97874523]
[1758040003410,0.00087066,115920.0,115910.0,1.56879999]
[1758040003618,0.00087066,115920.0,115910.0,1.97862523]
[1758040003766,0.00087066,115920.0,115910.0,1.56879999]
[1758040003972,0.00087066,115920.0,115910.0,1.57079999]
[1758040006269,0.00087066,115920.0,115910.0,1.57063999]
[1758040007015,0.00087066,115920.0,115910.0,1.93463575]
[1758040007199,0.00087066,115920.0,115910.0,1.57063999]
[1758040009905,0.00087066,115920.0,115910.0,1.93463575]
[1758040010539,0.00087066,115920.0,115910.0,1.93439575]
[1758040010771,0.00087066,115920.0,115910.0,1.57039999]
[1758040012426,0.00087066,115920.0,115910.0,1.93439575]
[1758040014787,0.00087066,115920.0,115910.0,2.27439575]
[1758040015492,0.00087066,115920.0,115910.0,1.91039999]
[1758040015739,0.00087066,115920.0,115910.0,2.27439575]
[1758040019169,1e-08,115920.0,115910.0,2.27439575]
[1758040019597,1e-08,115920.0,115910.0,1.79066719]
[1758040020687,1e-08,115920.0,115910.0,1.51378719]
[1758040020874,1e-08,115920.0,115910.0,1.78990719]
[1758040021220,0.0002,115930.0,115920.0,1.04268467]
[1758040021533,0.0002,115930.0,115920.0,1.79317188]
[1758040021805,0.0002,115930.0,115920.0,1.51883188]
[1758040021988,0.0002,115930.0,115920.0,1.79497188]
[1758040022200,0.0002,115930.0,115920.0,1.83097612]
[1758040023055,0.0002,115930.0,115920.0,1.83497612]
[1758040023193,0.0002,115930.0,115920.0,2.19897188]
[1758040027140,1e-08,115930.0,115920.0,1.96781612]
[1758040027344,1e-08,115930.0,115920.0,2.69580764]
[1758040027555,1e-08,115930.0,115920.0,2.72171459]
[1758040028398,1e-08,115930.0,115920.0,2.71971459]
[1758040028593,1e-08,115930.0,115920.0,2.71771459]
[1758040029426,1e-08,115930.0,115920.0,2.2177146]
[1758040031291,1e-08,115930.0,115920.0,2.0326546]
[1758040031502,1e-08,115930.0,115920.0,2.2172746]
[1758040031700,1.0002,115950.0,115940.0,0.54265491]
[1758040031910,1.00034113,115950.0,115940.0,1.29440212]
[1758040032544,1.00034113,115950.0,115940.0,1.69450212]
[1758040032950,1.00034113,115950.0,115940.0,1.7581093]
[1758040033248,1.00034113,115950.0,115940.0,1.4855093]
[1758040033630,1.00034113,115950.0,115940.0,1.4875093]
[1758040033805,1.00034113,115950.0,115940.0,1.7629493]
[1758040035235,1.00034113,115950.0,115940.0,1.39895354]
[1758040035430,1.00034113,115950.0,115940.0,1.7629493]
[1758040036202,1.00034113,115950.0,115940.0,1.7714493]
[1758040038245,1.00034113,115950.0,115940.0,1.7684493]
[1758040038384,1.00034113,115950.0,115940.0,1.7664493]
[1758040041435,1.00034113,115950.0,115940.0,1.90245354]
[1758040041632,1.00034113,115950.0,115940.0,1.9910093]
[1758040041809,1.00034113,115950.0,115940.0,2.2661693]
[1758040042860,1.00034113,115950.0,115940.0,1.9910093]
[1758040043258,1.00034113,115950.0,115940.0,2.2660893]
[1758040043503,1.00034113,115950.0,115940.0,1.90209354]
[1758040043710,1.00034113,115950.0,115940.0,1.9910093]
[1758040043918,1.00034113,115950.0,115940.0,2.2660493]
[1758040045346,1.00034113,115950.0,115940.0,1.62701354]
[1758040045697,1.00034113,115950.0,115940.0,1.90205354]
[1758040046151,1.00034113,115950.0,115940.0,2.2660493]
[1758040046817,1.00034113,115950.0,115940.0,1.9910093]
[1758040047018,1.00034113,115950.0,115940.0,2.2672093]
[1758040047269,1.00034113,115950.0,115940.0,1.9910093]
[1758040047486,1.00034113,115950.0,115940.0,2.2671293]
[1758040047701,1.00034113,115950.0,115940.0,1.9910093]
[1758040047917,1.00034113,115950.0,115940.0,2.2671293]
[1758040048365,1.00034113,115950.0,115940.0,1.9910093]
[1758040048590,1.00034113,115950.0,115940.0,2.2670893]
[1758040052430,1.00034113,115950.0,115940.0,1.90309354]
[1758040052616,1.00034113,115950.0,115940.0,2.2670893]
[1758040052813,1.00034113,115950.0,115940.0,1.9910093]
[1758040053052,1.00034113,115950.0,115940.0,2.2667293]
[1758040053913,1.00034113,115950.0,115940.0,1.9910093]
[1758040054131,1.00034113,115950.0,115940.0,2.2667293]
[1758040054351,1.00034113,115950.0,115940.0,1.62701354]
[1758040054559,1.36433689,115950.0,115940.0,1.87870354]
[1758040054790,1.00235113,115950.0,115940.0,1.87870354]
[1758040055223,1.00034113,115950.0,115940.0,1.90146354]
[1758040055861,1.00034113,115950.0,115940.0,1.61740354]
[1758040056096,1.27791113,115950.0,115940.0,1.87020354]
[1758040056322,1.00235113,115950.0,115940.0,1.87020354]
[1758040056534,1.00034113,115950.0,115940.0,1.89296354]
[1758040057167,1.00034113,115950.0,115940.0,1.89407354]
[1758040058789,1.00034113,115950.0,115940.0,1.61740354]
[1758040058971,1.00034113,115950.0,115940.0,1.89284354]
[1758040062489,1.00034113,115950.0,115940.0,1.59464354]
[1758040062700,1.00034113,115950.0,115940.0,1.86988354]
[1758040062897,1.00034113,115950.0,115940.0,1.89264354]
[1758040065277,1.00034113,115950.0,115940.0,1.89375354]
[1758040065882,1.00034113,115950.0,115940.0,2.30303232]
[1758040067041,1.00034113,115950.0,115940.0,1.89375354]
[1758040067704,1.00034113,115950.0,115940.0,2.30303232]
[1758040068796,1.00034113,115950.0,115940.0,1.89375354]
[1758040068971,1.00034113,115950.0,115940.0,2.30192232]
[1758040069182,1.00034113,115950.0,115940.0,2.30303232]
[1758040069419,1.00034113,115950.0,115940.0,1.61740354]
[1758040069629,1.00034113,115950.0,115940.0,1.89228354]
[1758040071691,1.00034113,115950.0,115940.0,1.89339354]
[1758040072093,1.00034113,115950.0,115940.0,2.30267232]
[1758040074892,1.00034113,115950.0,115940.0,1.89339354]
[1758040075112,1.00034113,115950.0,115940.0,2.30156232]
[1758040075308,1.00034113,115950.0,115940.0,2.30267232]
[1758040076722,1.00034113,115950.0,115940.0,1.89339354]
[1758040076924,1.00034113,115950.0,115940.0,2.30267232]
[1758040077715,1.00034113,115950.0,115940.0,2.02779232]
[1758040077924,1.00034113,115950.0,115940.0,2.30148232]
[1758040078360,1.00034113,115950.0,115940.0,1.89220354]
[1758040079581,1.00034113,115950.0,115940.0,2.30148232]
[1758040079993,1.00034113,115950.0,115940.0,2.30259232]
[1758040080953,1.00034113,115950.0,115940.0,1.89331354]
[1758040081157,1.00034113,115950.0,115940.0,2.30259232]
[1758040081357,1.00034113,115950.0,115940.0,2.00392232]
[1758040081563,1.00034113,115950.0,115940.0,1.86972354]
[1758040081768,1.00034113,115950.0,115940.0,2.30176232]
[1758040081971,1.00034113,115950.0,115940.0,1.89248354]
[1758040083097,1.00034113,115950.0,115940.0,1.59464354]
[1758040083335,1.84716869,115950.0,115940.0,1.22271164]
[1758040083555,1.89716869,115950.0,115940.0,1.22271164]
[1758040083941,1.48798991,115950.0,115940.0,1.15910446]
[1758040085957,1.76286991,115950.0,115940.0,1.15910446]
[1758040086949,1.71286991,115950.0,115940.0,1.15910446]
[1758040087170,1.76286991,115950.0,115940.0,1.15910446]
[1758040087828,1.71286991,115950.0,115940.0,1.15910446]
[1758040088034,1.76286991,115950.0,115940.0,1.15910446]
[1758040089290,2.34463683,115950.0,115940.0,1.15910446]
[1758040090428,1.93535805,115950.0,115940.0,1.15910446]
[1758040090634,2.34463683,115950.0,115940.0,1.15910446]
[1758040090780,2.34463683,115950.0,115940.0,1.16010446]
[1758040091724,2.34463683,115950.0,115940.0,0.58760145]
[1758040092312,2.34463683,115950.0,115940.0,0.5011]
[1758040092739,2.0956717,115950.0,115940.0,0.5011]
[1758040092946,2.0956717,115950.0,115940.0,0.501]
[1758040093165,2.3702317,115950.0,115940.0,0.504]
[1758040094019,2.0956717,115950.0,115940.0,0.504]
[1758040094849,2.3701117,115950.0,115940.0,0.504]
[1758040095252,2.3701117,115950.0,115940.0,0.004]
[1758040095457,3.11939048,115950.0,115940.0,0.004]
[1758040095641,2.72624511,115950.0,115940.0,0.004]
[1758040096668,0.17251789,115930.0,115920.0,0.17263165]
[1758040096903,1.01764667,115930.0,115920.0,0.17263165]
[1758040097265,1.04366613,115930.0,115920.0,0.17263165]
[1758040097888,1.04366613,115930.0,115920.0,0.17563165]
[1758040098093,0.59674824,115930.0,115920.0,0.2621331]
[1758040098311,0.87118824,115930.0,115920.0,0.2621331]
[1758040099382,0.87118824,115930.0,115920.0,0.6621331]
[1758040099586,0.87114824,115930.0,115920.0,0.6621331]
[1758040100603,0.87102824,115930.0,115920.0,0.6621331]
[1758040101018,0.87094824,115930.0,115920.0,0.6621331]
[1758040101829,0.16395946,115930.0,115920.0,0.6621331]
[1758040102029,0.41224,115930.0,115920.0,0.6639131]
[1758040102383,0.84502878,115930.0,115920.0,0.2621331]
[1758040102589,0.92502878,115930.0,115920.0,0.2621331]
[1758040102800,0.92502878,115930.0,115920.0,0.6621331]
[1758040103851,0.92502878,115930.0,115920.0,0.2621331]
[1758040104066,1.09754667,115930.0,115920.0,0.2621331]
[1758040104275,1.09754667,115930.0,115920.0,0.26213423]
[1758040104476,1.09754667,115930.0,115920.0,0.08960145]
[1758040104853,1.09754667,115930.0,115920.0,0.26213423]
[1758040105081,1.09754667,115930.0,115920.0,0.08960145]
[1758040106020,1.50682545,115930.0,115920.0,0.08960145]
[1758040106246,1.53274473,115930.0,115920.0,0.0031]
[1758040106493,1.53274473,115930.0,115920.0,0.003]
[1758040106696,1.12346595,115930.0,115920.0,0.003]
[1758040108597,0.26746928,115930.0,115920.0,0.17553278]
[1758040108837,0.95094806,115930.0,115920.0,0.26203423]
[1758040110257,0.26746928,115930.0,115920.0,0.26203423]
[1758040110483,0.95094806,115930.0,115920.0,0.26203423]
[1758040113516,0.89861878,115930.0,115920.0,0.26381423]
[1758040113741,0.92196878,115930.0,115920.0,0.26203423]
[1758040113978,0.1651,115930.0,115920.0,0.67309301]
[1758040114204,0.48718,115930.0,115920.0,0.69585301]
[1758040114442,0.43718,115930.0,115920.0,0.69585301]
[1758040114699,0.43718,115930.0,115920.0,0.69595301]
[1758040114931,0.35718,115930.0,115920.0,0.69595301]
[1758040115380,0.40718,115930.0,115920.0,0.69595301]
[1758040115632,0.40718,115930.0,115920.0,0.28667423]
[1758040115780,0.13294,115930.0,115920.0,0.28667423]
[1758040115982,0.40718,115930.0,115920.0,0.28667423]
[1758040116213,0.08294,115930.0,115920.0,0.28667423]
[1758040116478,0.35714,115930.0,115920.0,0.69595301]
[1758040116692,0.08294,115930.0,115920.0,0.69595301]
[1758040116905,0.35714,115930.0,115920.0,1.10634179]
[1758040117155,0.2743,115930.0,115920.0,1.03706301]
[1758040117699,0.2743,115930.0,115920.0,1.43506301]
[1758040117920,0.2742,115930.0,115920.0,1.43506301]
[1758040118485,0.2742,115930.0,115920.0,1.43406301]
[1758040118684,0.2742,115930.0,115920.0,1.43295301]
[1758040118891,0.2742,115930.0,115920.0,1.00191423]
[1758040119094,0.2742,115930.0,115920.0,1.43395301]
[1758040119300,0.27633,115930.0,115920.0,1.41319301]
[1758040119499,0.30275,115930.0,115920.0,1.00213423]
[1758040120115,0.71202878,115930.0,115920.0,0.66213423]
[1758040121189,0.71212878,115930.0,115920.0,0.66213423]
[1758040121398,0.30235,115930.0,115920.0,0.66213423]
[1758040123141,0.71162878,115930.0,115920.0,0.66213423]
[1758040123572,0.30235,115930.0,115920.0,0.66213423]
[1758040123986,0.30235,115930.0,115920.0,0.26213423]
[1758040124127,0.71162878,115930.0,115920.0,0.26213423]
[1758040124334,0.71162878,115930.0,115920.0,0.66213423]
[1758040125956,0.30235,115930.0,115920.0,0.66213423]
[1758040126602,0.2738,115930.0,115920.0,0.66391423]
[1758040126820,0.2738,115930.0,115920.0,0.68667423]
[1758040127415,0.27593,115930.0,115920.0,0.26391423]
[1758040127828,0.27593,115930.0,115920.0,0.66391423]
[1758040128310,0.0001,115930.0,115920.0,1.02789623]
[1758040128573,0.27426,115930.0,115920.0,1.05176623]
[1758040129493,0.27426,115930.0,115920.0,0.68667423]
[1758040129961,0.27426,115930.0,115920.0,0.68778423]
[1758040131025,0.0001,115930.0,115920.0,1.08191813]
[1758040131238,0.27426,115930.0,115920.0,1.08191813]
[1758040132509,0.27426,115930.0,115920.0,0.71793613]
[1758040132740,0.27426,115930.0,115920.0,1.08191813]
[1758040133242,0.0001,115930.0,115920.0,1.35607813]
[1758040137497,0.0001,115930.0,115920.0,1.85607813]
[1758040137702,0.27426,115940.0,115930.0,0.17251789]
[1758040137881,0.27426,115940.0,115930.0,0.64848134]
[1758040138290,0.27426,115940.0,115930.0,1.04848134]
[1758040138966,0.0001,115940.0,115930.0,1.35475324]
[1758040139172,0.0001,115940.0,115930.0,1.08063324]
[1758040139579,0.0001,115940.0,115930.0,1.35475324]
[1758040139766,0.0001,115940.0,115930.0,1.35285324]
[1758040140212,0.0001,115940.0,115930.0,1.35785324]
[1758040140441,1.27456113,115950.0,115940.0,0.17250301]
[1758040140653,1.27456113,115950.0,115940.0,0.28337446]
[1758040141056,1.27456113,115950.0,115940.0,0.68337446]
[1758040141703,1.27456113,115950.0,115940.0,0.68437446]
[1758040141917,1.27456113,115950.0,115940.0,0.68447446]
[1758040142338,1.27456113,115950.0,115940.0,0.68647446]
[1758040142774,1.27456113,115950.0,115940.0,1.18647446]
[1758040144372,1.27456113,115950.0,115940.0,1.18664446]
[1758040146908,1.27456113,115950.0,115940.0,1.55062646]
[1758040147134,1.27456113,115950.0,115940.0,1.18664446]
[1758040149933,1.27456113,115950.0,115940.0,1.18775446]
[1758040150157,1.00044113,115950.0,115940.0,1.89912836]
[1758040150341,1.00034113,115950.0,115940.0,1.92188836]
[1758040150494,1.00034113,115950.0,115940.0,2.19592836]
[1758040151584,0.6029805,115950.0,115940.0,2.19592836]
[1758040151797,0.6029805,115950.0,115940.0,1.92188836]
[1758040152085,0.6029805,115950.0,115940.0,2.19592836]
[1758040153390,0.08782416,115950.0,115940.0,2.19592836]
[1758040153667,1e-08,115950.0,115940.0,2.19592836]
[1758040154095,1e-08,115950.0,115940.0,1.72183177]
[1758040154304,1e-08,115950.0,115940.0,1.44779177]
[1758040154513,1e-08,115950.0,115940.0,1.78605411]
[1758040154724,1e-08,115950.0,115940.0,1.78405411]
[1758040155401,1e-08,115950.0,115940.0,1.78305411]
[1758040155610,1e-08,115950.0,115940.0,1.50901411]
[1758040155798,1e-08,115950.0,115940.0,1.51001411]
[1758040156205,0.0002,115960.0,115950.0,1.04264003]
[1758040156410,0.0002,115960.0,115950.0,1.79099348]
[1758040156617,0.0002,115960.0,115950.0,1.79277348]
[1758040156823,0.0002,115960.0,115950.0,2.19277348]
[1758040157235,0.0002,115960.0,115950.0,2.19287348]
[1758040157440,0.0002,115960.0,115950.0,1.91887348]
[1758040157648,0.0002,115960.0,115950.0,2.19287348]
[1758040157854,0.0002,115960.0,115950.0,2.19587348]
[1758040158308,0.0002,115960.0,115950.0,2.22177689]
[1758040159169,0.0002,115960.0,115950.0,2.22477689]
[1758040159902,0.0002,115960.0,115950.0,2.23327689]
[1758040161564,0.16461312,115990.0,115980.0,0.17244352]